Workbook

Sheet Sheet1
A1: ΠΡΟΪΟΝΤΑ ΕΚΠΟΙΗΣΗΣ
A2: Τα παρακάτω προϊόντα είναι καινούρια και διατίθενται με μεγάλη έκπτωση, λόγω διαφόρων θεμάτων που καταγράφονται στις παρατηρήσεις
A3: Για την αγορά τους θα πρέπει να επικοινωνήσετε τηλεφωνικά στο 2394020204 ή να στείλετε email στο dadiras@data-media.gr
A4: Φωτογραφία | B4: Κωδικός | C4: Περιγραφή | D4: Απόθεμα | E4: Κανονική τιμή | F4: ΕΚΠΤΩΣΗ % | G4: Τιμή προσφοράς | H4: Παρατηρήσεις
B5: A520MH | C5: BIOSTAR Μητρική A520MH, 2x DDR4, AM4, USB 3.2, HDMI, mATX, Ver. 6.0 | D5: 4 | E5: 59.23 | F5: 20 | G5: =E5*(100-F5)/100 -> 47.384 | H5: ΕΠΙΣΤΡΟΦΗ ΑΠΌ ΠΡΟΜΗΘΕΥΤΗ ΜΕΤΑ ΑΠΌ ΕΠΙΣΚΕΥΗ ΧΩΡΙΣ ΣΥΣΚΕΥΑΣΙΑ
B6: ANM-0007 | C6: Δοχείο συλλογής περιττωμάτων για κατοικίδια ANM-0007 με σακούλες, γκρι | D6: 1 | E6: 3 | F6: 80 | G6: =E6*(100-F6)/100 -> 0.6 | H6: ΧΤΥΠΗΜΕΝΗ ΣΥΣΚΕΥΑΣΙΑ
B7: AUL-S603 | C7: AULA gaming headset Mountain S603, RGB, 2x 3.5mm, 50mm, μαύρο | D7: 1 | E7: 6.7 | F7: 50 | G7: 3.35 | H7: ΧΤΥΠΗΜΕΝΗ ΣΥΣΚΕΥΑΣΙΑ
B8: B450MH | C8: BIOSTAR Μητρική B450MH, 2x DDR4, AM4, USB 3.1, HDMI, mATX, Ver. 6.0 | D8: 1 | E8: 59.23 | F8: 20 | G8: 47.384 | H8: ΕΠΙΣΤΡΟΦΗ ΑΠΌ ΠΡΟΜΗΘΕΥΤΗ ΜΕΤΑ ΑΠΌ ΕΠΙΣΚΕΥΗ ΧΩΡΙΣ ΣΥΣΚΕΥΑΣΙΑ
B9: B550MH | C9: BIOSTAR Μητρική B550MH, 2x DDR4, AM4, USB 3.2, uATX, HDMI, Ver. 6.0 | D9: 2 | E9: 77.91 | F9: 20 | G9: 62.328 | H9: ΕΠΙΣΤΡΟΦΗ ΑΠΌ ΠΡΟΜΗΘΕΥΤΗ ΜΕΤΑ ΑΠΌ ΕΠΙΣΚΕΥΗ ΧΩΡΙΣ ΣΥΣΚΕΥΑΣΙΑ
B10: B560MX-E-PRO | C10: BIOSTAR μητρική B560MX-E PRO, 4x DDR4, s1200, USB 3.2, mATX, Ver. 6.0 | D10: 1 | E10: 94 | F10: 20 | G10: 75.2 | H10: ΕΠΙΣΤΡΟΦΗ ΑΠΌ ΠΡΟΜΗΘΕΥΤΗ ΜΕΤΑ ΑΠΌ ΕΠΙΣΚΕΥΗ ΧΩΡΙΣ ΣΥΣΚΕΥΑΣΙΑ
B11: BO-28 | C11: BΟ Χαρτοταινία Θερμ 28x40mm 15m x60 | D11: 1 | E11: 7.979 | F11: 30 | G11: 5.5853 | H11: ΛΕΙΠΕΙ 1ΤΜΧ
B12: BO-33 | C12: BURN OUT Χαρτοταινία Θερμική 28 x 46 x 12mm, 25m, 55γρ, 60τμχ | D12: 1 | E12: 12.18 | F12: 40 | G12: =E12*(100-F12)/100 -> 7.308 | H12: ΛΕΙΠΟΥΝ 7ΤΜΧ, BULK
B13: BOX26 | C13: DVD Θήκη για 2 δίσκους 14 χιλιοστών, Clear - 50ΤΕΜ | D13: 1 | E13: 15.796 | F13: 70 | G13: =E13*(100-F13)/100 -> 4.7388 | H13: ΛΕΙΠΟΥΝ 5ΤΜΧ
B14: BRN-0014 | C14: BRUNO Μίξερ χειρός, 6 ταχύτητες, 20cm αναδευτήρες & ζυμωτήρες, 300W | D14: 1 | E14: 16.048 | F14: 40 | G14: =E14*(100-F14)/100 -> 9.6288 | H14: ΛΕΙΠΕΙ ΕΝΑΣ ΑΝΑΔΕΥΤΗΡΑΣ
B15: BX80701G5920 | C15: INTEL CPU Celeron G5920 Dual Core, 3.50GHz, 2MB Cache, LGA1200 | D15: 2 | E15: 48.18 | F15: 37.73 | G15: =E15*(100-F15)/100 -> 30.001686 | H15: ΑΝΟΙΧΤΗ ΣΥΣΚΕΥΑΣΙΑ
B16: BX80715G6900 | C16: INTEL CPU Celeron G6900, Dual Core, 3.40GHz, 4MB Cache, LGA1700 | D16: 1 | E16: 51.24 | F16: 31.69 | G16: 35.002044 | H16: ΑΝΟΙΧΤΗ ΣΥΣΚΕΥΑΣΙΑ
B17: C6515-4 | C17: DIBEISI ηχείο C6515-4, 6.5", 125W, 4 Ohm, 90dB | D17: 1 | E17: 9.96 | F17: 50 | G17: 4.98 | H17: ΧΤΥΠΗΜΕΝΗ ΣΥΣΚΕΥΑΣΙΑ
B18: COREPLUS-ARGB-PWM-4P | C18: AEROCOOL ψύκτρα COREPLUS-ARGB-PWM-4P, 1800rpm, 25.4dBA, 51.3CFM, ARGB | D18: 30 | E18: 11.02 | F18: 60 | G18: =E18*(100-F18)/100 -> 4.408 | H18: UNIVERSAL ΣΥΣΚΕΥΑΣΙΑ (ΧΑΡΤΟΚΙΒΩΤΙΟ)
B19: CT-MP03-AB | C19: CABLETIME πυκνωτικό μικρόφωνο MP03-AB, με αντιανέμιο & τρίποδα, USB | D19: 1 | E19: 26.05 | F19: 60 | G19: 10.42 | H19: ΛΕΙΠΕΙ Ο ΑΝΤΑΠΤΟΡΑΣ ΣΤΗΡΙΞΗΣ. ΕΊΝΑΙ ΛΕΙΤΟΥΡΓΙΚΟ, ΧΡΕΙΑΖΕΤΑΙ AFTER MARKET ΒΑΣΗ
B20: DRUMP-CF219A-12K | C20: Συμβατό Drum για HP CF219A, 12K, μαύρο | D20: 3 | E20: 8.45 | F20: 50 | G20: 4.225 | H20: ΧΤΥΠΗΜΕΝΗ ΣΥΣΚΕΥΑΣΙΑ
B21: DVD0256 | C21: MAXELL DVD-R 16x 120min 4,7Gb 50 Spindle | D21: 1 | E21: 10.4 | F21: 30 | G21: 7.28 | H21: ΧΤΥΠΗΜΕΝΗ ΣΥΣΚΕΥΑΣΙΑ
B22: FISH-0046 | C22: DAIWA πετονιά ψαρέματος FISH-0046, 14.5kg, 0.373mm, 500m, διάφανη | D22: 1 | E22: 5.47 | F22: 70 | G22: 1.641 | H22: ΧΤΥΠΗΜΕΝΗ ΣΥΣΚΕΥΑΣΙΑ
B23: H310MHP | C23: BIOSTAR Μητρική H310MHP, 2x DDR4, s1151, USB 3.1, HDMI, mATX, Ver. 7.0 | D23: 1 | E23: 57.3 | F23: 20 | G23: 45.84 | H23: ΕΠΙΣΤΡΟΦΗ ΑΠΌ ΠΡΟΜΗΘΕΥΤΗ ΜΕΤΑ ΑΠΌ ΕΠΙΣΚΕΥΗ ΧΩΡΙΣ ΣΥΣΚΕΥΑΣΙΑ
B24: H410MH | C24: BIOSTAR Μητρική Intel H410 | D24: 1 | E24: 53.85 | F24: 50 | G24: 26.925 | H24: ΕΠΙΣΤΡΟΦΗ ΑΠΌ ΠΡΟΜΗΘΕΥΤΗ ΜΕΤΑ ΑΠΌ ΕΠΙΣΚΕΥΗ ΧΩΡΙΣ ΣΥΣΚΕΥΑΣΙΑ
B25: H410MHG | C25: BIOSTAR Μητρική H410MHG, 2x DDR4, s1200, USB 3.2, uATX, Ver. 6.0 | D25: 1 | E25: 77.91 | F25: 20 | G25: 62.328 | H25: ΕΠΙΣΤΡΟΦΗ ΑΠΌ ΠΡΟΜΗΘΕΥΤΗ ΜΕΤΑ ΑΠΌ ΕΠΙΣΚΕΥΗ ΧΩΡΙΣ ΣΥΣΚΕΥΑΣΙΑ
B26: H610MHP | C26: BIOSTAR μητρική H610MHP, 2x DDR4, s1700, USB 3.2, uATX, GbE, Ver. 6.1 | D26: 1 | E26: 79.19 | F26: 20 | G26: 63.352 | H26: ΕΠΙΣΤΡΟΦΗ ΑΠΌ ΠΡΟΜΗΘΕΥΤΗ ΜΕΤΑ ΑΠΌ ΕΠΙΣΚΕΥΗ ΧΩΡΙΣ ΣΥΣΚΕΥΑΣΙΑ
B27: H61MHV2 | C27: BIOSTAR Μητρική H61MHV2, 2x DDR3, s1155, 8x USB 2.0 HDMI, mATX, Ver. 7.0 | D27: 1 | E27: 50.22 | F27: 20 | G27: 40.176 | H27: ΕΠΙΣΤΡΟΦΗ ΑΠΌ ΠΡΟΜΗΘΕΥΤΗ ΜΕΤΑ ΑΠΌ ΕΠΙΣΚΕΥΗ ΧΩΡΙΣ ΣΥΣΚΕΥΑΣΙΑ
B28: HUH-0107 | C28: Κρεμάστρα ντουλάπας HUH-0107, 8 θέσεων, αναδιπλούμενη, λευκή | D28: 1 | E28: 2.68 | F28: 70 | G28: 0.804 | H28: ΣΠΑΣΜΕΝΗ Η ΜΙΑ ΑΠΌ ΤΙΣ 8 ΚΡΕΜΑΣΤΡΕΣ
B29: INK-PG560XL | C29: Συμβατό Inkjet για Canon PG-560XL, 16ml, μαύρο | D29: 1 | E29: 11.9 | F29: 30 | G29: 8.33 | H29: ΧΤΥΠΗΜΕΝΗ ΣΥΣΚΕΥΑΣΙΑ
B30: IPK-020 | C30: IPAKY Θήκη Effort TPU & tempered glass Samsung Galaxy A6 Plus 2018 | D30: 1 | E30: 1.919 | F30: 90 | G30: =E30*(100-F30)/100 -> 0.1919 | H30: ΧΩΡΙΣ TEMPERED GLASS
B31: LDT13-C024 | C31: BRATECK Βάση γραφείου LDT13-C024 για 2 οθόνες 13"-27", 2-6.5kg | D31: 1 | E31: 40.94 | F31: 50 | G31: 20.47 | H31: ΧΤΥΠΗΜΕΝΗ ΣΥΣΚΕΥΑΣΙΑ
B32: NC-00581XXLM | C32: Συμβατό Inkjet Canon 581XXL Magenta | D32: 1 | E32: 4.646 | F32: 50 | G32: =E32*(100-F32)/100 -> 2.323 | H32: ΧΤΥΠΗΜΕΝΗ ΣΥΣΚΕΥΑΣΙΑ
B33: PB23-022-BL | C33: Ομπρέλα Kazbrella αντίστροφης δίπλωσης, λαβή σχήματος C, με θήκη, μπλε | D33: 1 | E33: 5.46 | F33: 90 | G33: 0.546 | H33: ΠΡΟΒΛΗΜΑΤΙΚΟ ΚΛΕΙΔΩΜΑ
B34: PC-1362-SQR | C34: HP PC Z200 Tower, i7-860, 4GB, 500GB HDD, DVD, Nvidia NVS 300, REF SQR | D34: 1 | E34: 128.72 | F34: 61.16 | G34: =E34*(100-F34)/100 -> 49.994848 | H34: ΛΕΙΤΟΥΡΓΙΚΟ. ΑΝΑ ΔΙΑΣΤΗΜΑΤΑ ΕΜΦΑΝΙΖΕΙ PRESS F1 TO CONTINUE ΣΤΟ BOOT
B35: PT-787 | C35: POWERTECH PC Case PT-787, USB 3.0, με PSU 500W | D35: 1 | E35: 39.07 | F35: 70 | G35: =E35*(100-F35)/100 -> 11.721 | H35: ΛΕΙΤΟΥΡΓΙΚΟ. ΣΤΡΑΒΩΜΑ ΣΤΟ ΠΙΣΩ ΚΑΙ ΕΠΑΝΩ ΜΕΡΟΣ
B36: PT-848 | C36: POWERTECH Gaming case PT-848, tempered glass, 80mm fan, PSU 500W PT-864 | D36: 1 | E36: 66.404 | F36: 60 | G36: =E36*(100-F36)/100 -> 26.5616 | H36: ΛΕΙΤΟΥΡΓΙΚΟ. ΣΠΑΣΜΕΝΟ ΠΟΔΑΡΑΚΙ ΚΑΙ ΣΤΡΑΒΩΜΑ ΣΤΟ ΣΑΣΙ (ΣΤΗΝ ΙΔΙΑ ΠΕΡΙΟΧΗ)
B37: PT-998 | C37: POWERTECH Bluetooth earphone Klipp 2 PT-998, multipoint, BT V5.1, γκρι | D37: 1 | E37: 21.694 | F37: 30 | G37: 15.1858 | H37: ΑΝΟΙΧΤΗ ΣΥΣΚΕΥΑΣΙΑ
B38: RP-H-0932XL | C38: Συμβατό Inkjet για HP, 932 XL, 32ml, Black | D38: 1 | E38: 4.17 | F38: 50 | G38: 2.085 | H38: ΧΤΥΠΗΜΕΝΗ ΣΥΣΚΕΥΑΣΙΑ
B39: RP-H-0950XL-BK | C39: Συμβατό Inkjet για HP, 950 XL, 73ml, Black | D39: 1 | E39: 3.55 | F39: 60 | G39: 1.42 | H39: ΧΤΥΠΗΜΕΝΗ ΣΥΣΚΕΥΑΣΙΑ
B40: S12-22R-B | C40: BRATECK ηλεκτρικό γραφείο S12-22R-B, ρυθμιζόμενο ύψος, 120x60cm, καφέ | D40: 1 | E40: 109.61 | F40: 40 | G40: 65.766 | H40: ΜΙΚΡΑ ΧΤΥΠΗΜΑΤΑ ΣΤΙΣ 2 ΔΕΞΙΕΣ ΠΛΕΥΡΕΣ
B41: TMV-0001 | C41: Toothbrush holder silicone with windows Ligth Gray | D41: 1 | E41: 4.95 | F41: 79 | G41: =E41*(100-F41)/100 -> 1.0395 | H41: ΧΤΥΠΗΜΕΝΗ ΣΥΣΚΕΥΑΣΙΑ
B42: TMV-0036 | C42: θήκη για χάπια TMV-0036 με δυνατότητα αποθήκευσης νερού, 600ml, μπλε | D42: 1 | E42: 2.42 | F42: 50 | G42: 1.21 | H42: ΧΤΥΠΗΜΕΝΗ ΣΥΣΚΕΥΑΣΙΑ
B43: TON-543-213-323 | C43: Συμβατό Toner για HP, CB543A CRG-716M, Magenta, 1.4K | D43: 8 | E43: 8.82 | F43: 30 | G43: 6.174 | H43: ΧΤΥΠΗΜΕΝΗ ΣΥΣΚΕΥΑΣΙΑ
B44: U59 | C44: BEELINK mini PC U59, INTEL CPU N5095, 8GB, 256GB SSD, Windows 10 Pro | D44: 1 | E44: 241.79 | F44: 30 | G44: 169.253 | H44: ΧΩΡΙΣ ΑΡΧΙΚΗ ΣΥΣΚΕΥΑΣΙΑ, ΕΚΘΕΣΙΑΚΟ
B45: X96MAX | C45: TV Box X96 MAX, 4K, S905XII, 4GB DDR4, 32GB eMMC, Android 8.1 | D45: 2 | E45: 62.36 | F45: 40 | G45: 37.416 | H45: ΧΩΡΙΣ ΣΥΣΚΕΥΑΣΙΑ (BULK)
B46: XB13006-BK | C46: ARCTIC HUNTER τσάντα Crossbody XB13006-BK, μαύρη | D46: 1 | E46: 11.21 | F46: 50 | G46: 5.605 | H46: ΔΥΟ ΜΙΚΡΑ ΣΗΜΑΔΙΑ ΕΜΠΡΟΣ
B47: Y00020-BK | C47: ARCTIC HUNTER τσάντα μέσης Y00020, μαύρη | D47: 1 | E47: 16.935 | F47: 30 | G47: =E47*(100-F47)/100 -> 11.8545 | H47: ΛΕΙΠΟΥΝ ΓΡΑΜΜΑΤΑ ΑΠΌ ΤΟ BRAND NAME
B48: WLTC04IR60 | C48: WELLER soldering tip WLTC04IR60, conical, 0.4mm, 3τμχ | D48: 1 | E48: 9.8 | F48: 50 | G48: =E48*(100-F48)/100 -> 4.9 | H48: ΑΝΟΙΧΤΗ ΣΥΣΚΕΥΑΣΙΑ
B49: 12601 | C49: DELOCK mousepad για laptop με στήριγμα καρπού 12601, 320x420mm, μαύρο | D49: 1 | E49: 13.31 | F49: 40 | G49: 7.986 | H49: ΧΤΥΠΗΜΕΝΗ ΣΥΣΚΕΥΑΣΙΑ
B50: 41266 | C50: GOOBAY αντάπτορας ρεύματος 41266, schuko, 16A, IP44, μαύρος | D50: 2 | E50: 4.05 | F50: 50 | G50: 2.025 | H50: ΧΤΥΠΗΜΕΝΗ ΣΥΣΚΕΥΑΣΙΑ
B51: 53439 | C51: GOOBAY φορτιστής αυτοκινήτου για laptop 53439, 12V-24V, 24W-2A, 6 tips | D51: 1 | E51: 11.88 | F51: 50 | G51: 5.94 | H51: ΑΝΟΙΧΤΗ ΣΥΣΚΕΥΑΣΙΑ
